fUST/lending_fUST_20250717
["ID","MTS","AMOUNT","RATE_DAILY","PERIOD"]
[372787092,1752761442114,-483.53,0.00018448,2]
[372787094,1752761442124,-1520.34,0.00018448,2]
[372787096,1752761442133,-460.0,0.00018448,2]
[372787098,1752761442143,-508.19,0.00018449,2]
[372787100,1752761442152,-460.0,0.00018449,2]
[372787102,1752761442162,-460.0,0.0001845,2]
[372787104,1752761442172,-458.32612869,0.0001845,2]
[372787106,1752761442183,-460.0,0.0001845,2]
[372787108,1752761442193,-919.46,0.0001845,2]
[372787110,1752761442203,-957.6,0.0001845,2]
[372787112,1752761442212,-1594.11,0.0001845,2]
[372787114,1752761442222,-460.0,0.0001845,2]
[372787116,1752761442232,-572.38,0.0001845,2]
[372787118,1752761442241,-991.89,0.0001845,2]
[372787120,1752761442251,-460.0,0.0001845,2]
[372787122,1752761442260,-4262.81,0.0001845,2]
[372787124,1752761442269,-501.46,0.00018451,2]
[372787126,1752761442279,-7481.26937425,0.00018452,2]
[372787128,1752761442289,-894.48,0.00018719,2]
[372787130,1752761442298,-1888.97,0.0001872,2]
[372787132,1752761442308,-1286.01,0.0001872,2]
[372787134,1752761442318,-460.0,0.0001872,2]
[372787136,1752761442328,-1015.2,0.0001872,2]
[372787138,1752761442337,-1011.04,0.0001872,2]
[372787140,1752761442347,-486.38,0.0001872,2]
[372787142,1752761442356,-340.0,0.0001872,2]
[372787144,1752761442365,-460.0,0.00018721,2]
[372787146,1752761442375,-460.0,0.00018721,2]
[372787148,1752761442384,-483.53,0.00018722,2]
[372787150,1752761442394,-1520.34,0.00018722,2]
[372787152,1752761442404,-460.0,0.00018722,2]
[372787155,1752761442419,-508.19,0.00018723,2]
[372787158,1752761442429,-169.43385169,0.00018723,2]
[372787160,1752761442440,-460.0,0.00018724,2]
[372787162,1752761442450,-919.46,0.00018724,2]
[372787164,1752761442459,-957.6,0.00018724,2]
[372787166,1752761442469,-1594.11,0.00018724,2]
[372787168,1752761442479,-460.0,0.00018724,2]
[372787170,1752761442489,-572.38,0.00018724,2]
[372787172,1752761442499,-991.89,0.00018724,2]
[372787174,1752761442508,-460.0,0.00018724,2]
[372787176,1752761442517,-4262.81,0.00018724,2]
[372787178,1752761442527,-501.46,0.00018725,2]
[372787180,1752761442536,-151.0,0.00018726,2]
[372787182,1752761442545,-151.0,0.00018726,2]
[372787184,1752761442555,-151.0,0.00018726,2]
[372787186,1752761442564,-151.0,0.00018726,2]
[372787188,1752761442574,-207.4,0.00018726,2]
[372787190,1752761442583,-151.0,0.00018726,2]
[372787192,1752761442592,-151.0,0.00018726,2]
[372787195,1752761442602,-151.0,0.00018726,2]
[372787197,1752761442611,-151.0,0.00018726,2]
[372787199,1752761442621,-151.0,0.00018726,2]
[372787201,1752761442630,-151.0,0.00018726,2]
[372787203,1752761442640,-151.0,0.00018726,2]
[372787205,1752761442649,-151.0,0.00018726,2]
[372787207,1752761442658,-151.0,0.00018726,2]
[372787209,1752761442667,-151.0,0.00018726,2]
[372787211,1752761442676,-151.0,0.00018726,2]
[372787213,1752761442686,-3801.642,0.00018726,2]
[372787215,1752761442696,-151.0,0.00018726,2]
[372787217,1752761442706,-151.0,0.00018726,2]
[372787219,1752761442716,-151.0,0.00018726,2]
[372787221,1752761442726,-151.0,0.00018726,2]
[372787223,1752761442737,-151.0,0.00018726,2]
[372787225,1752761442747,-151.0,0.00018726,2]
[372787251,1752761442947,-25000.0,0.00018726,2]
[372787253,1752761442957,-1128.6027529,0.00018726,2]
[372787255,1752761442969,-7481.26937425,0.00018728,2]
[372787257,1752761442978,-800.0,0.00018769,2]
[372787259,1752761442989,-3942.302754,0.00018781,2]
[372787261,1752761442998,-1500.0,0.00018796,2]
[372787263,1752761443009,-955.60655033,0.000188,2]
[372787265,1752761443021,-2563.77961654,0.000189,2]
[372787267,1752761443031,-3036.14865524,0.00018904,2]
[372787269,1752761443042,-160.0,0.0001894,2]
[372787271,1752761443051,-894.48,0.00018993,2]
[372787273,1752761443062,-1888.97,0.00018994,2]
[372787275,1752761443071,-1286.01,0.00018994,2]
[372787277,1752761443080,-460.0,0.00018994,2]
[372787279,1752761443090,-1015.2,0.00018994,2]
[372787281,1752761443100,-1011.04,0.00018994,2]
[372787285,1752761443111,-486.38,0.00018994,2]
[372787288,1752761443121,-460.0,0.00018995,2]
[372787290,1752761443131,-460.0,0.00018995,2]
[372787293,1752761443140,-483.53,0.00018996,2]
[372787295,1752761443149,-1520.34,0.00018996,2]
[372787297,1752761443159,-460.0,0.00018996,2]
[372787299,1752761443168,-508.19,0.00018997,2]
[372787302,1752761443178,-460.0,0.00018998,2]
[372787304,1752761443188,-919.46,0.00018998,2]
[372787306,1752761443197,-957.6,0.00018998,2]
[372787307,1752761443208,-1594.11,0.00018998,2]
[372787311,1752761443222,-460.0,0.00018998,2]
[372787314,1752761443232,-572.38,0.00018998,2]
[372787316,1752761443242,-991.89,0.00018998,2]
[372787318,1752761443251,-460.0,0.00018998,2]
[372787320,1752761443261,-4262.81,0.00018998,2]
[372787322,1752761443270,-501.46,0.00018999,2]
[372787324,1752761443279,-7481.26937425,0.00019003,2]
[372787326,1752761443288,-172.85,0.00019075,2]
[372787328,1752761443298,-244.39770133,0.00019082,2]
[372787330,1752761443307,-532.02774,0.00019178,2]
[372787332,1752761443316,-666.0,0.00019178,2]
[372787334,1752761443326,-894.48,0.00019267,2]
[372787336,1752761443336,-1888.97,0.00019268,2]
[372787338,1752761443346,-1286.01,0.00019268,2]
[372787340,1752761443355,-460.0,0.00019268,2]
[372787342,1752761443365,-1015.2,0.00019268,2]
[372787344,1752761443375,-1011.04,0.00019268,2]
[372787345,1752761443384,-486.38,0.00019268,2]
[372787347,1752761443394,-460.0,0.00019269,2]
[372787349,1752761443403,-460.0,0.00019269,2]
[372787352,1752761443413,-483.53,0.0001927,2]
[372787353,1752761443422,-1520.34,0.0001927,2]
[372787355,1752761443432,-460.0,0.0001927,2]
[372787358,1752761443443,-508.19,0.00019271,2]
[372787359,1752761443453,-460.0,0.00019272,2]
[372787362,1752761443463,-919.46,0.00019272,2]
[372787363,1752761443473,-957.6,0.00019272,2]
[372787365,1752761443482,-1594.11,0.00019272,2]
[372787367,1752761443492,-460.0,0.00019272,2]
[372787369,1752761443502,-572.38,0.00019272,2]
[372787371,1752761443511,-991.89,0.00019272,2]
[372787373,1752761443521,-460.0,0.00019272,2]
[372787375,1752761443531,-4262.81,0.00019272,2]
[372787377,1752761443541,-501.46,0.00019273,2]
[372787380,1752761443551,-151.0,0.00019274,2]
[372787382,1752761443561,-25000.0,0.00019274,2]
[372787384,1752761443570,-7481.26937425,0.00019279,2]
[372787385,1752761443579,-2522.78,0.00019296,2]
[372787388,1752761443588,-3036.14865524,0.00019298,2]
[372787389,1752761443597,-44856.17379529,0.00019329,2]
[372787391,1752761443607,-179.9820018,0.00019337,2]
[372787393,1752761443618,-500.0,0.00019344,2]
[372787395,1752761443629,-500.0,0.0001938,2]
[372787397,1752761443639,-331.2,0.00019427,2]
[372787399,1752761443648,-250.0,0.00019452,2]
[372787401,1752761443658,-4000.0,0.00019482,2]
[372787403,1752761443668,-3036.14865524,0.00019485,2]
[372787405,1752761443678,-260.0,0.00019488,2]
[372787407,1752761443690,-894.48,0.00019541,2]
[372787410,1752761443700,-1888.97,0.00019542,2]
[372787411,1752761443710,-1286.01,0.00019542,2]
[372787414,1752761443720,-310.2786302,0.00019542,2]
[372787415,1752761443730,-1015.2,0.00019542,2]
[372787417,1752761443739,-1011.04,0.00019542,2]
[372787419,1752761443749,-486.38,0.00019542,2]
[372787421,1752761443758,-460.0,0.00019543,2]
[372787423,1752761443768,-460.0,0.00019543,2]
[372787425,1752761443778,-483.53,0.00019544,2]
[372787427,1752761443787,-1520.34,0.00019544,2]
[372787429,1752761443796,-417.91,0.00019544,2]
[372787431,1752761443805,-508.19,0.00019545,2]
[372787433,1752761443815,-460.0,0.00019546,2]
[372787435,1752761443824,-919.46,0.00019546,2]
[372787437,1752761443834,-957.6,0.00019546,2]
[372787439,1752761443844,-1594.11,0.00019546,2]
[372787441,1752761443853,-460.0,0.00019546,2]
[372787443,1752761443863,-572.38,0.00019546,2]
[372787445,1752761443874,-991.89,0.00019546,2]
[372787447,1752761443883,-460.0,0.00019546,2]
[372787450,1752761443904,-4262.81,0.00019546,2]
[372787452,1752761443915,-437.649947,0.00019547,2]
[372787454,1752761443925,-501.46,0.00019547,2]
[372787456,1752761443936,-7481.26937425,0.00019555,2]
[372787458,1752761443946,-160.5111916,0.00019565,2]
[372787460,1752761443957,-159.7589235,0.00019565,2]
[372787462,1752761443967,-159.7589233,0.00019565,2]
[372787464,1752761443976,-955.60655029,0.00019698,2]
[372787466,1752761443987,-587.0,0.00019734,2]
[372787468,1752761443997,-331.2,0.00019815,3]
[372787470,1752761444008,-894.48,0.00019815,2]
[372787472,1752761444021,-1888.97,0.00019816,2]
[372787474,1752761444032,-1286.01,0.00019816,2]
[372787476,1752761444042,-1015.2,0.00019816,2]
[372787478,1752761444053,-1011.04,0.00019816,2]
[372787481,1752761444063,-486.38,0.00019816,2]
[372787482,1752761444073,-460.0,0.00019817,2]
[372787484,1752761444084,-562.75030526,0.00019817,2]
[372787486,1752761444106,-483.53,0.00019818,2]
[372787489,1752761444117,-1520.34,0.00019818,2]
[372787491,1752761444128,-508.19,0.00019819,2]
[372787493,1752761444138,-460.0,0.0001982,2]
[372787495,1752761444148,-919.46,0.0001982,2]
[372787497,1752761444166,-957.6,0.0001982,2]
[372787499,1752761444175,-1594.11,0.0001982,2]
[372787501,1752761444185,-460.0,0.0001982,2]
[372787503,1752761444196,-572.38,0.0001982,2]
[372787505,1752761444205,-991.89,0.0001982,2]
[372787507,1752761444215,-460.0,0.0001982,2]
[372787509,1752761444225,-4262.81,0.0001982,2]
[372787511,1752761444235,-501.46,0.00019821,2]
[372787513,1752761444246,-280.55485677,0.00019822,2]
[372787515,1752761444256,-25000.0,0.00019822,2]
[372787517,1752761444266,-7481.26937425,0.00019831,2]
[372787519,1752761444277,-207.42,0.00019838,2]
[372787521,1752761444286,-188.78,0.00019862,2]
[372787523,1752761444297,-800.0,0.00019865,2]
[372787525,1752761444307,-6000.0,0.00019886,2]
[372787527,1752761444317,-154.54751433,0.00019908,2]
[372787529,1752761444327,-3036.14865525,0.00019949,2]
[372787531,1752761444337,-500.0,0.0001998,2]
[372787533,1752761444347,-300.0,0.0002,2]
[372787535,1752761444356,-360.0,0.00020036,2]
[372787537,1752761444366,-894.48,0.00020089,2]
[372787539,1752761444375,-1888.97,0.0002009,2]
[372787541,1752761444385,-1286.01,0.0002009,2]
[372787543,1752761444394,-1015.2,0.0002009,2]
[372787545,1752761444404,-1011.04,0.0002009,2]
[372787548,1752761444415,-486.38,0.0002009,2]
[372787549,1752761444425,-460.0,0.00020091,2]
[372787551,1752761444437,-1192.0,0.00020092,2]
[372787554,1752761444447,-151.0,0.00020092,2]
[372787555,1752761444456,-151.0,0.00020092,2]
[372787557,1752761444466,-199.48917632,0.00020092,2]
[372787560,1752761444476,-151.0,0.00020092,2]
[372787562,1752761444486,-151.0,0.00020092,2]
[372787563,1752761444496,-483.53,0.00020092,2]
[372787565,1752761444505,-500.0,0.00020092,2]
[372787568,1752761444516,-151.0,0.00020092,2]
[372787569,1752761444526,-151.0,0.00020092,2]
[372787572,1752761444536,-151.0,0.00020092,2]
[372787574,1752761444545,-151.0,0.00020092,2]
[372787575,1752761444555,-236.66958099,0.00020092,2]
[372787578,1752761444565,-500.0,0.00020092,2]
[372787579,1752761444575,-151.0,0.00020092,2]
[372787581,1752761444586,-151.0,0.00020092,2]
[372787583,1752761444598,-151.0,0.00020092,2]
[372787586,1752761444608,-151.0,0.00020092,2]
[372787588,1752761444617,-151.0,0.00020092,2]
[372787589,1752761444626,-976.0,0.00020092,2]
[372787591,1752761444637,-151.0,0.00020092,2]
[372787594,1752761444647,-151.0,0.00020092,2]
[372787595,1752761444657,-151.0,0.00020092,2]
[372787597,1752761444667,-151.0,0.00020092,2]
[372787600,1752761444677,-151.0,0.00020092,2]
[372787601,1752761444687,-500.0,0.00020092,2]
[372787603,1752761444697,-1520.34,0.00020092,2]
[372787604,1752761444707,-508.19,0.00020093,2]
[372787605,1752761444717,-460.0,0.00020094,2]
[372787606,1752761444726,-919.46,0.00020094,2]
[372787607,1752761444736,-957.6,0.00020094,2]
[372787608,1752761444746,-1594.11,0.00020094,2]
[372787609,1752761444756,-460.0,0.00020094,2]
[372787610,1752761444767,-572.38,0.00020094,2]
[372787611,1752761444777,-991.89,0.00020094,2]
[372787612,1752761444786,-460.0,0.00020094,2]
[372787613,1752761444797,-4262.81,0.00020094,2]
[372787614,1752761444807,-215.0738,0.00020095,2]
[372787615,1752761444817,-501.46,0.00020095,2]
[372787616,1752761444826,-7481.26937425,0.00020107,2]
[372787617,1752761444836,-8000.0,0.00020128,2]
[372787618,1752761444846,-234.7296125,0.00020135,2]
[372787619,1752761444856,-258.424285,0.00020135,2]
[372787620,1752761444866,-441.1155204,0.00020135,2]
[372787621,1752761444876,-1764.46208159,0.00020135,2]
[372787622,1752761444886,-3970.03968357,0.00020135,2]
[372787623,1752761444895,-7057.84832634,0.00020135,2]
[372787624,1752761444905,-650.401388,0.00020187,2]
[372787625,1752761444915,-151.0,0.000202,2]
[372787626,1752761444925,-331.2,0.00020203,3]
[372787627,1752761444935,-564.951053,0.00020223,2]
[372787628,1752761444945,-564.951053,0.00020223,2]
[372787629,1752761444955,-938.0,0.00020246,2]
[372787631,1752761444966,-1711.44997232,0.00020283,2]
[372787633,1752761444976,-200.6701932,0.00020283,2]
[372787635,1752761444986,-206.866597,0.00020316,2]
[372787638,1752761444998,-151.0,0.00020316,2]
[372787640,1752761445008,-894.48,0.00020363,2]
[372787642,1752761445022,-1888.97,0.00020364,2]
[372787644,1752761445032,-1286.01,0.00020364,2]
[372787646,1752761445042,-1015.2,0.00020364,2]
[372787648,1752761445052,-1011.04,0.00020364,2]
[372787650,1752761445062,-486.38,0.00020364,2]
[372787652,1752761445072,-460.0,0.00020365,2]
[372787654,1752761445081,-1192.0,0.00020366,2]
[372787656,1752761445091,-151.0,0.00020366,2]
[372787657,1752761445102,-151.0,0.00020366,2]
[372787659,1752761445111,-500.0,0.00020366,2]
[372787661,1752761445120,-151.0,0.00020366,2]
[372787663,1752761445129,-151.0,0.00020366,2]
[372787665,1752761445139,-500.0,0.00020366,2]
[372787667,1752761445150,-151.0,0.00020366,2]
[372787669,1752761445160,-151.0,0.00020366,2]
[372787671,1752761445169,-247.18468876,0.00020366,2]
[372787673,1752761445179,-276.01602829,0.00020366,2]
[372787675,1752761445191,-976.0,0.00020366,2]
[372787677,1752761445201,-151.0,0.00020366,2]
[372787679,1752761445210,-151.0,0.00020366,2]
[372787681,1752761445220,-198.0,0.00020366,2]
[372787683,1752761445230,-500.0,0.00020366,2]
[372787685,1752761445239,-483.53,0.00020366,2]
[372787687,1752761445249,-1520.34,0.00020366,2]
[372787689,1752761445260,-508.19,0.00020367,2]
[372787691,1752761445270,-331.75711081,0.00020368,2]
[372787693,1752761445279,-919.46,0.00020368,2]
[372787695,1752761445289,-957.6,0.00020368,2]
[372787697,1752761445298,-1594.11,0.00020368,2]
[372787699,1752761445308,-412.74,0.00020368,2]
[372787701,1752761445318,-572.38,0.00020368,2]
[372787703,1752761445328,-991.89,0.00020368,2]
[372787705,1752761445338,-460.0,0.00020368,2]
[372787707,1752761445348,-4262.81,0.00020368,2]
[372787709,1752761445358,-501.46,0.00020369,2]
[372787711,1752761445367,-10000.0,0.00020382,2]
[372787713,1752761445377,-7481.26937425,0.00020383,3]
[372787715,1752761445387,-159.7589233,0.00020387,2]
[372787717,1752761445397,-159.7589235,0.00020387,2]
[372787719,1752761445408,-159.7589233,0.00020387,2]
[372787722,1752761445417,-159.7589235,0.00020387,2]
[372787724,1752761445427,-159.7589233,0.00020387,2]
[372787725,1752761445436,-159.7589235,0.00020387,2]
[372787728,1752761445447,-159.7589233,0.00020387,2]
[372787730,1752761445456,-159.7589235,0.00020387,2]
[372787732,1752761445466,-159.7589233,0.00020387,2]
[372787733,1752761445475,-159.7589235,0.00020387,2]
[372787735,1752761445484,-159.7589233,0.00020387,2]
[372787738,1752761445494,-159.7589235,0.00020387,2]
[372787740,1752761445503,-159.7589233,0.00020387,2]
[372787742,1752761445513,-159.7314839,0.00020387,2]
[372787744,1752761445522,-1152.9176394,0.00020387,2]
[372787746,1752761445531,-576.958633,0.00020387,2]
[372787748,1752761445541,-12607.95677342,0.000204,3]
[372787750,1752761445550,-214.44804168,0.000204,3]
[372787751,1752761445559,-476.16111942,0.000204,3]
[372787753,1752761445568,-160.0,0.000204,3]
[372787756,1752761445578,-319.5178467,0.00020404,2]
[372787757,1752761445588,-244.39770133,0.00020409,2]
[372787759,1752761445597,-501.89293347,0.00020467,2]
[372787761,1752761445606,-938.0,0.00020477,2]
[372787764,1752761445616,-11016.8601219,0.00020483,2]
[372787765,1752761445626,-151.0,0.000205,2]
[372787767,1752761445635,-214.040371,0.000205,2]
[372787769,1752761445645,-214.040371,0.000205,2]
[372787771,1752761445654,-938.0,0.00020518,2]
[372787773,1752761445664,-460.0,0.00020584,2]
[372787775,1752761445675,-5000.0,0.00020586,2]
[372787778,1752761445684,-331.2,0.00020591,3]
[372787779,1752761445698,-955.60655029,0.00020595,2]
[372787782,1752761445708,-241.99,0.00020601,2]
[372787783,1752761445717,-437.649947,0.00020624,3]
[372787785,1752761445727,-894.48,0.00020637,2]
[372787787,1752761445737,-1888.97,0.00020638,2]
[372787789,1752761445746,-1286.01,0.00020638,2]
[372787792,1752761445756,-1015.2,0.00020638,2]
[372787793,1752761445765,-1011.04,0.00020638,2]
[372787796,1752761445774,-486.38,0.00020638,2]
[372787798,1752761445783,-460.0,0.00020639,2]
[372787800,1752761445794,-1192.0,0.0002064,2]
[372787801,1752761445803,-292.99665788,0.0002064,2]
[372787803,1752761445813,-198.0,0.0002064,2]
[372787806,1752761445823,-151.0,0.0002064,2]
[372787807,1752761445832,-198.0,0.0002064,2]
[372787809,1752761445842,-151.0,0.0002064,2]
[372787812,1752761445851,-263.89327024,0.0002064,2]
[372787813,1752761445861,-151.0,0.0002064,2]
[372787815,1752761445871,-223.87291385,0.0002064,2]
[372787817,1752761445881,-976.0,0.0002064,2]
[372787819,1752761445890,-198.0,0.0002064,2]
[372787821,1752761445900,-500.0,0.0002064,2]
[372787823,1752761445909,-151.0,0.0002064,2]
[372787825,1752761445919,-483.53,0.0002064,2]
[372787827,1752761445929,-1520.34,0.0002064,2]
[372787829,1752761445939,-508.19,0.00020641,2]
[372787831,1752761445948,-919.46,0.00020642,2]
[372787833,1752761445958,-957.6,0.00020642,2]
[372787835,1752761445967,-1594.11,0.00020642,2]
[372787837,1752761445976,-572.38,0.00020642,2]
[372787839,1752761445986,-991.89,0.00020642,2]
[372787841,1752761445996,-460.0,0.00020642,2]
[372787843,1752761446006,-4262.81,0.00020642,2]
[372787845,1752761446019,-501.46,0.00020643,2]
[372787847,1752761446028,-938.0,0.00020647,2]
[372787849,1752761446038,-7481.26937425,0.00020659,3]
[372787851,1752761446048,-759.202,0.00020668,2]
[372787853,1752761446059,-500.0,0.00020673,2]
[372787855,1752761446069,-500.0,0.00020673,2]
[372787857,1752761446078,-172.959033,0.00020688,2]
[372787859,1752761446099,-172.959033,0.00020688,2]
[372787861,1752761446110,-258.424285,0.00020688,2]
[372787863,1752761446120,-258.424285,0.00020688,2]
[372787865,1752761446129,-1746.39,0.000207,2]
[372787867,1752761446138,-202.08182537,0.000207,2]
[372787869,1752761446148,-5888.0,0.00020756,2]
[372787871,1752761446158,-938.0,0.00020757,2]
[372787873,1752761446167,-500.0,0.00020773,2]
[372787874,1752761446177,-682.536,0.00020784,2]
[372787877,1752761446189,-2155.0,0.00020784,2]
[372787878,1752761446198,-968.0,0.00020784,2]
[372787881,1752761446208,-407.0,0.00020787,2]
[372787882,1752761446217,-414.376,0.00020787,2]
[372787886,1752761446227,-151.0,0.00020791,2]
[372787887,1752761446238,-437.649947,0.00020855,2]
[372787890,1752761446247,-505.68595802,0.0002088,2]
[372787892,1752761446257,-894.48,0.00020911,2]
[372787894,1752761446268,-1888.97,0.00020912,2]
[372787896,1752761446278,-1286.01,0.00020912,2]
[372787898,1752761446288,-1015.2,0.00020912,2]
[372787900,1752761446298,-1011.04,0.00020912,2]
[372787902,1752761446308,-486.38,0.00020912,2]
[372787904,1752761446318,-460.0,0.00020913,2]
[372787907,1752761446328,-1192.0,0.00020914,2]
[372787908,1752761446339,-151.0,0.00020914,2]
[372787911,1752761446349,-198.0,0.00020914,2]
[372787913,1752761446359,-976.0,0.00020914,2]
[372787915,1752761446368,-500.0,0.00020914,2]
[372787917,1752761446377,-198.0,0.00020914,2]
[372787919,1752761446387,-483.53,0.00020914,2]
[372787921,1752761446396,-1520.34,0.00020914,2]
[372787923,1752761446406,-508.19,0.00020915,2]
[372787940,1752761446558,-919.46,0.00020916,2]
[372787942,1752761446568,-957.6,0.00020916,2]
[372787944,1752761446578,-1594.11,0.00020916,2]
[372787946,1752761446586,-572.38,0.00020916,2]
[372787947,1752761446596,-991.89,0.00020916,2]
[372787949,1752761446605,-460.0,0.00020916,2]
[372787952,1752761446616,-1338.00482717,0.00020916,2]
[372787967,1752761446752,-2924.80517283,0.00020916,2]
[372787969,1752761446762,-501.46,0.00020917,2]
[372787971,1752761446772,-500.0,0.00020918,2]
[372787972,1752761446781,-500.0,0.00020918,2]
[372787974,1752761446791,-500.0,0.00020918,2]
[372787977,1752761446801,-500.0,0.00020918,2]
[372787979,1752761446811,-500.0,0.00020918,2]
[372787981,1752761446820,-500.0,0.00020918,2]
[372787983,1752761446829,-2575.55648361,0.00020934,4]
[372788031,1752761447315,-460.0,0.00016528,2]
[372788032,1752761447324,-460.0,0.00016529,2]
[372788033,1752761447333,-460.0,0.00016802,2]
[372788034,1752761447343,-460.0,0.00016803,2]
[372788035,1752761447352,-460.0,0.00017076,2]
[372788036,1752761447361,-460.0,0.00017077,2]
[372788037,1752761447371,-460.0,0.0001735,2]
[372788038,1752761447380,-224.24,0.00017351,2]
[372788039,1752761447389,-218.9,0.00017624,2]
[372788041,1752761447399,-465.74,0.00018174,2]
[372788043,1752761447408,-465.74,0.00018448,2]
[372788045,1752761447417,-465.74,0.00018722,2]
[372788047,1752761447427,-465.74,0.00018996,2]
[372788049,1752761447436,-465.74,0.0001927,2]
[372788051,1752761447448,-465.74,0.00019544,2]
[372788053,1752761447457,-465.74,0.00019818,2]
[372788055,1752761447467,-151.0,0.00020092,2]
[372788057,1752761447476,-465.74,0.00020092,2]
[372788059,1752761447486,-465.74,0.00020366,2]
[372788061,1752761447495,-465.74,0.0002064,2]
[372788063,1752761447504,-465.74,0.00020914,2]
[372788065,1752761447514,-4905.71289064,0.00020934,4]
[372788067,1752761447524,-564.951053,0.00020947,2]
[372788069,1752761447534,-564.951053,0.00020947,2]
[372788071,1752761447544,-800.0,0.00020961,2]
[372788073,1752761447554,-206.866597,0.00020963,2]
[372788075,1752761447563,-151.0,0.00020963,2]
[372788077,1752761447573,-5888.0,0.00020979,2]
[372788079,1752761447582,-331.2,0.00020979,4]
[372788081,1752761447591,-938.0,0.00020981,2]
[372788083,1752761447601,-1000.0,0.00021,2]
[372788085,1752761447610,-1000.0,0.00021,2]
[372788087,1752761447619,-1000.0,0.00021,2]
[372788089,1752761447629,-1000.0,0.00021,2]
[372788091,1752761447638,-1000.0,0.00021,2]
[372788093,1752761447647,-151.0,0.00021,3]
[372788095,1752761447657,-151.0,0.00021,4]
[372788097,1752761447666,-1000.0,0.00021,2]
[372788099,1752761447676,-1000.0,0.00021,2]
[372788101,1752761447685,-1000.0,0.00021,2]
[372788103,1752761447696,-938.0,0.00021019,2]
[372788105,1752761447707,-437.649947,0.00021107,4]
[372788107,1752761447716,-125943.39592942,0.00021108,2]
[372788109,1752761447725,-560.0,0.00021132,2]
[372788112,1752761447736,-894.48,0.00021185,2]
[372788114,1752761447746,-1888.97,0.00021186,2]
[372788115,1752761447755,-1286.01,0.00021186,2]
[372788117,1752761447766,-1015.2,0.00021186,2]
[372788119,1752761447776,-1011.04,0.00021186,2]
[372788121,1752761447785,-486.38,0.00021186,2]
[372788123,1752761447795,-460.0,0.00021187,2]
[372788125,1752761447805,-1192.0,0.00021188,2]
[372788128,1752761447816,-976.0,0.00021188,2]
[372788130,1752761447826,-500.0,0.00021188,2]
[372788132,1752761447835,-1520.34,0.00021188,2]
[372788134,1752761447845,-465.74,0.00021188,2]
[372788136,1752761447854,-508.19,0.00021189,2]
[372788138,1752761447863,-919.46,0.0002119,2]
[372788140,1752761447873,-957.6,0.0002119,2]
[372788142,1752761447883,-1594.11,0.0002119,2]
[372788144,1752761447896,-572.38,0.0002119,2]
[372788146,1752761447905,-991.89,0.0002119,2]
[372788148,1752761447915,-486.64386244,0.0002119,2]
[372788150,1752761447925,-4262.81,0.0002119,2]
[372788152,1752761447935,-501.46,0.00021191,2]
[372788154,1752761447946,-938.0,0.00021199,2]
[372788156,1752761447957,-576.958633,0.00021209,2]
[372788158,1752761447967,-576.958633,0.00021209,2]
[372788160,1752761447976,-576.958633,0.00021209,2]
[372788162,1752761447986,-576.958633,0.00021209,2]
[372788164,1752761447996,-531.1150301,0.00021209,2]
[372788166,1752761448006,-857.1485247,0.00021209,2]
[372788168,1752761448018,-178.0508326,0.00021209,2]